[Event "Early-Titled-Tuesday-Blitz-March-19-2024"]
[Site "Chess.com"]
[Date "2024.03.19"]
[Round "8"]
[White "Njal28"]
[Black "Arystanner"]
[Result "0-1"]
[WhiteElo "3042"]
[BlackElo "2853"]
[TimeControl "180+1"]
[EndTime "9:28:38 PDT"]
[Termination "Arystanner won by resignation"]

1. d4 {[%clk 0:03:00.9]} 1... d5 {[%clk 0:02:56]} 2. c4 {[%clk 0:03:00.3]} 2...
e6 {[%clk 0:02:56.7]} 3. Nf3 {[%clk 0:03:00.3]} 3... Nf6 {[%clk 0:02:57.4]} 4.
e3 {[%clk 0:03:00.7]} 4... a6 {[%clk 0:02:56.1]} 5. cxd5 {[%clk 0:02:59.7]} 5...
exd5 {[%clk 0:02:55.8]} 6. Nc3 {[%clk 0:03:00.6]} 6... c6 {[%clk 0:02:54.1]} 7.
Bd3 {[%clk 0:02:59.4]} 7... Bd6 {[%clk 0:02:54.2]} 8. Qc2 {[%clk 0:02:59.8]}
8... O-O {[%clk 0:02:54]} 9. O-O {[%clk 0:03:00.4]} 9... Re8 {[%clk 0:02:54.3]}
10. Bd2 {[%clk 0:02:57.7]} 10... Bg4 {[%clk 0:02:54.3]} 11. Kh1 {[%clk 0:02:37]}
11... Nbd7 {[%clk 0:02:48]} 12. Ng1 {[%clk 0:02:33.3]} 12... Nf8 {[%clk
0:02:47.5]} 13. f3 {[%clk 0:02:31.4]} 13... Bh5 {[%clk 0:02:36.8]} 14. e4 {[%clk
0:02:27.5]} 14... dxe4 {[%clk 0:02:37]} 15. fxe4 {[%clk 0:02:28.4]} 15... Bxh2
{[%clk 0:02:37.6]} 16. Kxh2 {[%clk 0:02:22]} 16... Ng4+ {[%clk 0:02:37.7]} 17.
Kh1 {[%clk 0:02:20.9]} 17... Qxd4 {[%clk 0:02:30]} 18. Bf4 {[%clk 0:01:41.2]}
18... Rad8 {[%clk 0:02:13.6]} 19. Be2 {[%clk 0:01:30.7]} 19... Ne6 {[%clk
0:01:57.6]} 20. Bxg4 {[%clk 0:01:31]} 20... Bxg4 {[%clk 0:01:57.1]} 21. Bh2
{[%clk 0:01:31.7]} 21... Qc5 {[%clk 0:01:50.9]} 22. Nf3 {[%clk 0:01:27.8]} 22...
Qh5 {[%clk 0:01:49.9]} 23. Ne5 {[%clk 0:01:22.5]} 23... Nd4 {[%clk 0:01:45.3]}
24. Qf2 {[%clk 0:01:08.7]} 24... Rxe5 {[%clk 0:01:45.3]} 25. Kg1 {[%clk
0:00:58.7]} 25... Re6 {[%clk 0:01:39]} 26. Qf4 {[%clk 0:00:36.1]} 26... b5
{[%clk 0:01:29.2]} 27. Rf2 {[%clk 0:00:34.6]} 27... b4 {[%clk 0:01:27.7]} 28.
Qc7 {[%clk 0:00:35.1]} 28... Rde8 {[%clk 0:01:26.8]} 29. Raf1 {[%clk 0:00:32.3]}
29... bxc3 {[%clk 0:01:24.9]} 30. Rxf7 {[%clk 0:00:32.2]} 30... Rg6 {[%clk
0:01:08]} 31. Bd6 {[%clk 0:00:02.5]} 31... Ne2+ {[%clk 0:01:02.7]} 32. Kf2
{[%clk 0:00:03.1]} 32... Rxd6 {[%clk 0:01:01.8]} 33. Rxg7+ {[%clk 0:00:02.3]}
33... Kh8 {[%clk 0:01:02.4]} 34. Rh1 {[%clk 0:00:01.4]} 34... Rf6+ {[%clk
0:01:00]} 35. Ke3 {[%clk 0:00:01.6]} 35... Qxh1 {[%clk 0:00:58.8]} 36. Re7
{[%clk 0:00:01.1]} 36... Qh6+ {[%clk 0:00:59]} 37. Kd3 {[%clk 0:00:01.3]} 37...
Rxe7 {[%clk 0:00:52.5]} 38. Qxe7 {[%clk 0:00:01.2]} 38... Qf8 {[%clk 0:00:52.8]}
39. Qe5 {[%clk 0:00:01.4]} 39... Qd6+ {[%clk 0:00:52.6]} 40. Qd4 {[%clk
0:00:01.3]} 40... Qxd4+ {[%clk 0:00:52.7]} 0-1

[Event "Early-Titled-Tuesday-Blitz-March-19-2024"]
[Site "Chess.com"]
[Date "2024.03.19"]
[Round "8"]
[White "Josetricks"]
[Black "Saxar85"]
[Result "0-1"]
[WhiteElo "2547"]
[BlackElo "2728"]
[TimeControl "180+1"]
[EndTime "9:28:38 PDT"]
[Termination "Saxar85 won by resignation"]

1. d4 {[%clk 0:02:59.6]} 1... Nf6 {[%clk 0:02:59]} 2. Nc3 {[%clk 0:02:59.6]}
2... d5 {[%clk 0:02:55.5]} 3. Bf4 {[%clk 0:03:00]} 3... g6 {[%clk 0:02:51.1]} 4.
Nf3 {[%clk 0:02:59.2]} 4... Bg7 {[%clk 0:02:48.8]} 5. e3 {[%clk 0:02:59.4]} 5...
O-O {[%clk 0:02:47.1]} 6. h4 {[%clk 0:02:59.4]} 6... Bg4 {[%clk 0:02:45.2]} 7.
Qd2 {[%clk 0:02:57.7]} 7... c5 {[%clk 0:02:41.1]} 8. Ne5 {[%clk 0:02:56.4]} 8...
Nc6 {[%clk 0:02:38.3]} 9. Nxg4 {[%clk 0:02:54.5]} 9... Nxg4 {[%clk 0:02:37.8]}
10. Be2 {[%clk 0:02:48.5]} 10... cxd4 {[%clk 0:02:27.4]} 11. exd4 {[%clk
0:02:47.8]} 11... Qd7 {[%clk 0:02:24.4]} 12. f3 {[%clk 0:02:37.2]} 12... Nf6
{[%clk 0:02:21.2]} 13. Be5 {[%clk 0:02:29.7]} 13... Nh5 {[%clk 0:01:42.9]} 14.
Bxg7 {[%clk 0:02:24.5]} 14... Kxg7 {[%clk 0:01:38.4]} 15. O-O-O {[%clk
0:02:20.5]} 15... Qd6 {[%clk 0:01:37.7]} 16. g4 {[%clk 0:02:13.1]} 16... Nf4
{[%clk 0:01:37.1]} 17. h5 {[%clk 0:02:08.9]} 17... g5 {[%clk 0:01:34.5]} 18. h6+
{[%clk 0:02:07.3]} 18... Kh8 {[%clk 0:01:34.4]} 19. Kb1 {[%clk 0:02:01.5]} 19...
Rac8 {[%clk 0:01:33.2]} 20. Bd3 {[%clk 0:01:55]} 20... Qf6 {[%clk 0:01:29.7]}
21. Ne2 {[%clk 0:01:38.9]} 21... Nxd4 {[%clk 0:01:07.1]} 22. Nxf4 {[%clk
0:01:17]} 22... Qxf4 {[%clk 0:01:06.6]} 23. Be4 {[%clk 0:00:53.2]} 23... Qxd2
{[%clk 0:00:59.9]} 24. Rxd2 {[%clk 0:00:54.1]} 24... dxe4 {[%clk 0:00:58]} 25.
Rxd4 {[%clk 0:00:54.8]} 25... exf3 {[%clk 0:00:57.7]} 26. Rf1 {[%clk 0:00:53]}
26... Rfd8 {[%clk 0:00:56.8]} 27. Re4 {[%clk 0:00:48.4]} 27... e6 {[%clk
0:00:50.4]} 28. c3 {[%clk 0:00:48.8]} 28... f5 {[%clk 0:00:47.9]} 29. gxf5
{[%clk 0:00:31.4]} 29... exf5 {[%clk 0:00:47.4]} 30. Re5 {[%clk 0:00:31.9]}
30... g4 {[%clk 0:00:45.4]} 31. Rxf5 {[%clk 0:00:31.9]} 31... Rf8 {[%clk
0:00:43.3]} 32. Rg5 {[%clk 0:00:25.4]} 32... Rg8 {[%clk 0:00:43.2]} 33. Rf5
{[%clk 0:00:23]} 33... Rcf8 {[%clk 0:00:42.6]} 34. Rxf8 {[%clk 0:00:07.4]} 34...
Rxf8 {[%clk 0:00:41.8]} 35. Kc2 {[%clk 0:00:07.7]} 35... g3 {[%clk 0:00:41.5]}
36. Kd2 {[%clk 0:00:08.1]} 36... g2 {[%clk 0:00:40.6]} 37. Rg1 {[%clk
0:00:08.7]} 37... f2 {[%clk 0:00:40.1]} 38. Rxg2 {[%clk 0:00:09.1]} 38... f1=Q
{[%clk 0:00:39.4]} 39. Rg7 {[%clk 0:00:09.7]} 0-1

[Event "Early-Titled-Tuesday-Blitz-March-19-2024"]
[Site "Chess.com"]
[Date "2024.03.19"]
[Round "8"]
[White "LeoWin2012"]
[Black "Orest_Vovk"]
[Result "1-0"]
[WhiteElo "2244"]
[BlackElo "2512"]
[TimeControl "180+1"]
[EndTime "9:28:38 PDT"]
[Termination "LeoWin2012 won by resignation"]

1. e4 {[%clk 0:03:00.9]} 1... g5 {[%clk 0:02:52.1]} 2. d4 {[%clk 0:02:58.4]}
2... g4 {[%clk 0:02:51.9]} 3. Nc3 {[%clk 0:02:52.6]} 3... Bg7 {[%clk 0:02:51.5]}
4. Be3 {[%clk 0:02:52.7]} 4... h5 {[%clk 0:02:50.2]} 5. Qd2 {[%clk 0:02:52.1]}
5... d6 {[%clk 0:02:50.5]} 6. Bc4 {[%clk 0:02:48.1]} 6... c6 {[%clk 0:02:50.7]}
7. Nge2 {[%clk 0:02:45.8]} 7... Qa5 {[%clk 0:02:50.6]} 8. Nf4 {[%clk 0:02:41.1]}
8... Nf6 {[%clk 0:02:44.8]} 9. O-O-O {[%clk 0:02:35.3]} 9... Nbd7 {[%clk
0:02:43.5]} 10. Bb3 {[%clk 0:02:28.6]} 10... b5 {[%clk 0:02:43.1]} 11. f3 {[%clk
0:02:26.9]} 11... Nb6 {[%clk 0:02:41.6]} 12. e5 {[%clk 0:02:24.6]} 12... Nfd7
{[%clk 0:02:34.6]} 13. exd6 {[%clk 0:02:17.9]} 13... exd6 {[%clk 0:02:33.7]} 14.
Rhe1 {[%clk 0:02:18.8]} 14... Nc4 {[%clk 0:02:14.4]} 15. Bxc4 {[%clk 0:02:14.6]}
15... bxc4 {[%clk 0:02:15.3]} 16. Nfd5 {[%clk 0:01:35.2]} 16... cxd5 {[%clk
0:02:01.4]} 17. Bh6+ {[%clk 0:01:34]} 17... Be5 {[%clk 0:01:38.3]} 18. Bg7
{[%clk 0:01:34.9]} 18... Rg8 {[%clk 0:01:20.3]} 19. Qh6 {[%clk 0:01:27.5]} 19...
Kd8 {[%clk 0:00:32.7]} 20. dxe5 {[%clk 0:01:22.9]} 20... Bb7 {[%clk 0:00:21.5]}
21. exd6 {[%clk 0:01:17.3]} 21... Kc8 {[%clk 0:00:13.7]} 22. Qh7 {[%clk
0:01:16.4]} 22... Qd8 {[%clk 0:00:13]} 23. Bd4 {[%clk 0:01:08.4]} 23... Qg5+
{[%clk 0:00:11.6]} 24. Be3 {[%clk 0:00:49.3]} 24... Qg6 {[%clk 0:00:11.5]} 25.
Qxg6 {[%clk 0:00:47.1]} 25... fxg6 {[%clk 0:00:12.2]} 26. Nxd5 {[%clk
0:00:45.2]} 26... Bxd5 {[%clk 0:00:12.1]} 27. Rxd5 {[%clk 0:00:46.1]} 27... gxf3
{[%clk 0:00:12.4]} 28. gxf3 {[%clk 0:00:45.8]} 28... Kb7 {[%clk 0:00:12.5]} 29.
Bg5 {[%clk 0:00:43.6]} 29... Kc6 {[%clk 0:00:11]} 30. Rd4 {[%clk 0:00:41.9]}
30... Nb6 {[%clk 0:00:10.9]} 31. Re6 {[%clk 0:00:38.3]} 31... Raf8 {[%clk
0:00:07.8]} 32. d7+ {[%clk 0:00:36.3]} 32... Kc5 {[%clk 0:00:08.1]} 33. d8=Q
{[%clk 0:00:33.2]} 33... Rxd8 {[%clk 0:00:07.7]} 34. Rxd8 {[%clk 0:00:34.1]}
34... Rg7 {[%clk 0:00:07.4]} 1-0

[Event "Early-Titled-Tuesday-Blitz-March-19-2024"]
[Site "Chess.com"]
[Date "2024.03.19"]
[Round "8"]
[White "Casper"]
[Black "Kunalm64"]
[Result "0-1"]
[WhiteElo "2495"]
[BlackElo "2631"]
[TimeControl "180+1"]
[EndTime "9:28:40 PDT"]
[Termination "Kunalm64 won by resignation"]

1. Nf3 {[%clk 0:03:00.9]} 1... Nf6 {[%clk 0:02:59.6]} 2. b3 {[%clk 0:03:01.1]}
2... g6 {[%clk 0:02:57.9]} 3. Bb2 {[%clk 0:03:02]} 3... Bg7 {[%clk 0:02:58.3]}
4. g3 {[%clk 0:03:02.7]} 4... O-O {[%clk 0:02:57.1]} 5. Bg2 {[%clk 0:03:03.3]}
5... d5 {[%clk 0:02:57.4]} 6. O-O {[%clk 0:03:03.7]} 6... c6 {[%clk 0:02:55.9]}
7. d4 {[%clk 0:03:02.2]} 7... Bg4 {[%clk 0:02:55]} 8. c4 {[%clk 0:03:00.5]} 8...
Bxf3 {[%clk 0:02:34.6]} 9. Bxf3 {[%clk 0:02:59.8]} 9... Re8 {[%clk 0:02:33.7]}
10. Nc3 {[%clk 0:02:59.2]} 10... e6 {[%clk 0:02:30.4]} 11. Qd3 {[%clk
0:02:48.5]} 11... Nbd7 {[%clk 0:02:27.4]} 12. Rad1 {[%clk 0:02:40.8]} 12... Qe7
{[%clk 0:02:25.3]} 13. Rfe1 {[%clk 0:02:39.7]} 13... Rad8 {[%clk 0:02:22.2]} 14.
Kg2 {[%clk 0:02:23.9]} 14... h5 {[%clk 0:02:21.1]} 15. h4 {[%clk 0:02:23.3]}
15... e5 {[%clk 0:02:11.9]} 16. e4 {[%clk 0:02:15.6]} 16... exd4 {[%clk
0:01:56.5]} 17. exd5 {[%clk 0:01:38.8]} 17... Qxe1 {[%clk 0:01:29.9]} 18. Rxe1
{[%clk 0:01:39.7]} 18... Rxe1 {[%clk 0:01:29.9]} 19. dxc6 {[%clk 0:01:29.5]}
19... Ne5 {[%clk 0:00:45.4]} 20. Qd2 {[%clk 0:01:21.4]} 20... Rg1+ {[%clk
0:00:44.4]} 21. Kh3 {[%clk 0:01:19.4]} 21... Nxf3 {[%clk 0:00:43.7]} 22. Qf4
{[%clk 0:01:11.1]} 22... dxc3 {[%clk 0:00:25.8]} 23. Bxc3 {[%clk 0:01:08]} 23...
Rdd1 {[%clk 0:00:20.8]} 24. Qxf3 {[%clk 0:01:07.6]} 24... Rh1+ {[%clk
0:00:20.4]} 25. Qxh1 {[%clk 0:01:07.6]} 25... Rxh1+ {[%clk 0:00:19.7]} 26. Kg2
{[%clk 0:01:08.5]} 26... bxc6 {[%clk 0:00:13.6]} 27. Kxh1 {[%clk 0:01:09.1]}
27... Ne4 {[%clk 0:00:12.6]} 28. Bxg7 {[%clk 0:01:08.7]} 28... Kxg7 {[%clk
0:00:12.4]} 29. Kg2 {[%clk 0:01:09.6]} 29... Kf6 {[%clk 0:00:12.7]} 30. Kf3
{[%clk 0:01:09.5]} 30... Kf5 {[%clk 0:00:10.8]} 31. Ke3 {[%clk 0:01:09.4]} 31...
c5 {[%clk 0:00:11.2]} 32. a3 {[%clk 0:01:08.1]} 32... a5 {[%clk 0:00:10.2]} 33.
Ke2 {[%clk 0:01:05.8]} 33... Ke5 {[%clk 0:00:09.5]} 34. Ke3 {[%clk 0:01:05.9]}
34... f5 {[%clk 0:00:09]} 35. Kf3 {[%clk 0:00:55.1]} 35... Nd2+ {[%clk
0:00:08.6]} 36. Ke3 {[%clk 0:00:54.3]} 36... Nxb3 {[%clk 0:00:09.2]} 37. f4+
{[%clk 0:00:53.9]} 37... Ke6 {[%clk 0:00:09.4]} 38. Kd3 {[%clk 0:00:54.6]} 38...
a4 {[%clk 0:00:08.4]} 39. Ke3 {[%clk 0:00:54]} 39... Kd6 {[%clk 0:00:08.1]} 40.
Kd3 {[%clk 0:00:54.9]} 40... Na5 {[%clk 0:00:07.9]} 41. Ke3 {[%clk 0:00:54.9]}
41... Nxc4+ {[%clk 0:00:08.2]} 42. Kd3 {[%clk 0:00:55.8]} 42... Nxa3 {[%clk
0:00:08.4]} 0-1

[Event "Early-Titled-Tuesday-Blitz-March-19-2024"]
[Site "Chess.com"]
[Date "2024.03.19"]
[Round "8"]
[White "FREDERICKtheMATE"]
[Black "Jojo_898"]
[Result "0-1"]
[WhiteElo "2680"]
[BlackElo "2493"]
[TimeControl "180+1"]
[EndTime "9:28:40 PDT"]
[Termination "Jojo_898 won by checkmate"]

1. d4 {[%clk 0:03:00.9]} 1... Nf6 {[%clk 0:02:58.4]} 2. c4 {[%clk 0:03:01.8]}
2... b6 {[%clk 0:02:56.8]} 3. Nc3 {[%clk 0:03:00.9]} 3... Bb7 {[%clk 0:02:57.5]}
4. d5 {[%clk 0:03:00.6]} 4... g6 {[%clk 0:02:57]} 5. e4 {[%clk 0:03:00.3]} 5...
d6 {[%clk 0:02:57.4]} 6. Nf3 {[%clk 0:02:59.6]} 6... Bg7 {[%clk 0:02:57.6]} 7.
Be2 {[%clk 0:02:58.2]} 7... O-O {[%clk 0:02:58.2]} 8. O-O {[%clk 0:02:57.8]}
8... a5 {[%clk 0:02:55.4]} 9. h3 {[%clk 0:02:54.5]} 9... Nbd7 {[%clk 0:02:55.5]}
10. Nd4 {[%clk 0:02:49.6]} 10... Nc5 {[%clk 0:02:53.8]} 11. Qc2 {[%clk
0:02:45.1]} 11... Nfxe4 {[%clk 0:02:50.1]} 12. Nc6 {[%clk 0:02:34]} 12... Bxc6
{[%clk 0:02:49.7]} 13. Nxe4 {[%clk 0:02:33.7]} 13... Bd7 {[%clk 0:02:41.6]} 14.
Nxc5 {[%clk 0:02:32.2]} 14... bxc5 {[%clk 0:02:39.9]} 15. Bd3 {[%clk 0:02:32.3]}
15... c6 {[%clk 0:02:39]} 16. dxc6 {[%clk 0:02:29]} 16... Bxc6 {[%clk 0:02:39]}
17. Re1 {[%clk 0:02:29.1]} 17... Rb8 {[%clk 0:02:35.1]} 18. Rb1 {[%clk
0:02:28.5]} 18... Qd7 {[%clk 0:02:30.9]} 19. Bd2 {[%clk 0:02:26.4]} 19... a4
{[%clk 0:02:29.1]} 20. b3 {[%clk 0:02:26.6]} 20... axb3 {[%clk 0:02:28.8]} 21.
axb3 {[%clk 0:02:27.5]} 21... Rb6 {[%clk 0:02:24.3]} 22. Bg5 {[%clk 0:02:22.5]}
22... e6 {[%clk 0:02:21.4]} 23. h4 {[%clk 0:02:22.1]} 23... Rfb8 {[%clk
0:02:21.4]} 24. Qd1 {[%clk 0:02:16.4]} 24... Qb7 {[%clk 0:02:20.2]} 25. Bc2
{[%clk 0:02:11.1]} 25... Bxg2 {[%clk 0:02:18.8]} 26. Qg4 {[%clk 0:02:08.1]}
26... Bf3 {[%clk 0:02:11.7]} 27. Qh3 {[%clk 0:02:07.6]} 27... h5 {[%clk
0:02:10.7]} 28. Qg3 {[%clk 0:01:50.1]} 28... Ra8 {[%clk 0:02:07.4]} 29. Re3
{[%clk 0:01:38.3]} 29... Bg4 {[%clk 0:02:05.7]} 30. f3 {[%clk 0:01:37]} 30...
Bf5 {[%clk 0:02:00.6]} 31. Bxf5 {[%clk 0:01:36.2]} 31... exf5 {[%clk 0:02:01.5]}
32. Re7 {[%clk 0:01:35.4]} 32... Qc6 {[%clk 0:01:57.4]} 33. Qg2 {[%clk
0:01:22.6]} 33... Re8 {[%clk 0:01:51.4]} 34. Qe2 {[%clk 0:01:13.8]} 34... Rbb8
{[%clk 0:01:49.9]} 35. Rd1 {[%clk 0:00:58.9]} 35... Bd4+ {[%clk 0:01:43.7]} 36.
Kg2 {[%clk 0:00:51.7]} 36... Rxe7 {[%clk 0:01:43.7]} 37. Qxe7 {[%clk 0:00:50.4]}
37... Re8 {[%clk 0:01:43.7]} 38. Qa7 {[%clk 0:00:50.3]} 38... Re2+ {[%clk
0:01:42.8]} 39. Kg3 {[%clk 0:00:49.7]} 39... Bf2+ {[%clk 0:01:37.9]} 40. Kf4
{[%clk 0:00:36.9]} 40... Re3 {[%clk 0:01:21.7]} 41. Rd5 {[%clk 0:00:33.3]} 41...
Re8 {[%clk 0:01:13.1]} 42. Qa1 {[%clk 0:00:18.2]} 42... Qd7 {[%clk 0:01:06.6]}
43. Bf6 {[%clk 0:00:16.8]} 43... Qe6 {[%clk 0:01:02.2]} 44. Kg5 {[%clk
0:00:16.4]} 44... Be3+ {[%clk 0:00:57.4]} 45. f4 {[%clk 0:00:16.5]} 45... Bxf4+
{[%clk 0:00:54.1]} 46. Kxf4 {[%clk 0:00:15.9]} 46... Qe3# {[%clk 0:00:54.8]} 0-1

[Event "Early-Titled-Tuesday-Blitz-March-19-2024"]
[Site "Chess.com"]
[Date "2024.03.19"]
[Round "8"]
[White "diamonds13"]
[Black "Horokoskii"]
[Result "1-0"]
[WhiteElo "2338"]
[BlackElo "2154"]
[TimeControl "180+1"]
[EndTime "9:28:42 PDT"]
[Termination "diamonds13 won by resignation"]

1. d4 {[%clk 0:03:00.9]} 1... Nf6 {[%clk 0:02:43.9]} 2. c4 {[%clk 0:03:00.7]}
2... c5 {[%clk 0:02:31.6]} 3. d5 {[%clk 0:03:00.2]} 3... e6 {[%clk 0:02:32.2]}
4. Nc3 {[%clk 0:03:00.1]} 4... exd5 {[%clk 0:02:32.5]} 5. cxd5 {[%clk
0:03:00.5]} 5... d6 {[%clk 0:02:33]} 6. e4 {[%clk 0:03:00.7]} 6... g6 {[%clk
0:02:32.3]} 7. Bd3 {[%clk 0:03:00.5]} 7... Bg7 {[%clk 0:02:31.3]} 8. h3 {[%clk
0:03:00]} 8... O-O {[%clk 0:02:29.8]} 9. Nge2 {[%clk 0:02:59.4]} 9... Na6 {[%clk
0:02:17.9]} 10. a3 {[%clk 0:02:54.8]} 10... Nc7 {[%clk 0:02:16.2]} 11. O-O
{[%clk 0:02:54.1]} 11... a6 {[%clk 0:02:16.5]} 12. a4 {[%clk 0:02:54]} 12... Rb8
{[%clk 0:02:15.6]} 13. a5 {[%clk 0:02:52.6]} 13... Re8 {[%clk 0:02:10.9]} 14. f4
{[%clk 0:02:50.8]} 14... b6 {[%clk 0:02:09.4]} 15. axb6 {[%clk 0:02:48.8]} 15...
Rxb6 {[%clk 0:02:10.3]} 16. Ng3 {[%clk 0:02:36.9]} 16... Nb5 {[%clk 0:02:06.5]}
17. Nxb5 {[%clk 0:02:32.2]} 17... axb5 {[%clk 0:02:06.4]} 18. Re1 {[%clk
0:02:27.7]} 18... Nd7 {[%clk 0:02:05]} 19. e5 {[%clk 0:02:21.6]} 19... c4 {[%clk
0:01:59]} 20. Bc2 {[%clk 0:02:19]} 20... dxe5 {[%clk 0:01:54.1]} 21. f5 {[%clk
0:02:19.1]} 21... Nc5 {[%clk 0:01:49.6]} 22. Be3 {[%clk 0:02:15]} 22... Qd6
{[%clk 0:01:43.4]} 23. Kh1 {[%clk 0:02:01.4]} 23... Rb8 {[%clk 0:01:40.7]} 24.
Rf1 {[%clk 0:01:44.9]} 24... Bb7 {[%clk 0:01:29.3]} 25. f6 {[%clk 0:01:44.4]}
25... Bf8 {[%clk 0:01:29.2]} 26. Qg4 {[%clk 0:01:35.1]} 26... Qxd5 {[%clk
0:01:24.4]} 27. Rf2 {[%clk 0:01:25.9]} 27... Qe6 {[%clk 0:01:13.7]} 28. Qg5
{[%clk 0:01:17.8]} 28... Nd3 {[%clk 0:00:59.4]} 29. Bxd3 {[%clk 0:00:54.7]}
29... cxd3 {[%clk 0:00:59.2]} 30. Nf5 {[%clk 0:00:42.7]} 30... Kh8 {[%clk
0:00:47.2]} 31. Ng7 {[%clk 0:00:39.4]} 31... Qxh3+ {[%clk 0:00:31.1]} 32. Kg1
{[%clk 0:00:37.9]} 32... Qd7 {[%clk 0:00:21.1]} 33. Qh6 {[%clk 0:00:33.5]} 33...
Rbc8 {[%clk 0:00:17.1]} 34. g3 {[%clk 0:00:31.9]} 34... Qc6 {[%clk 0:00:15.3]}
35. Rh2 {[%clk 0:00:30.9]} 1-0

[Event "Early-Titled-Tuesday-Blitz-March-19-2024"]
[Site "Chess.com"]
[Date "2024.03.19"]
[Round "8"]
[White "guillembaches"]
[Black "Lennis93"]
[Result "0-1"]
[WhiteElo "2561"]
[BlackElo "2754"]
[TimeControl "180+1"]
[EndTime "9:28:47 PDT"]
[Termination "Lennis93 won by resignation"]

1. d4 {[%clk 0:03:00.9]} 1... Nf6 {[%clk 0:02:44.3]} 2. Nf3 {[%clk 0:03:01.3]}
2... e6 {[%clk 0:02:44.3]} 3. Bg5 {[%clk 0:03:01.9]} 3... b6 {[%clk 0:02:44.4]}
4. e3 {[%clk 0:03:01.4]} 4... Bb7 {[%clk 0:02:44.2]} 5. Nbd2 {[%clk 0:03:02]}
5... c5 {[%clk 0:02:44.1]} 6. c3 {[%clk 0:03:01.3]} 6... h6 {[%clk 0:02:43.7]}
7. Bh4 {[%clk 0:03:01.2]} 7... Be7 {[%clk 0:02:41.4]} 8. Bd3 {[%clk 0:03:01]}
8... d5 {[%clk 0:02:41.4]} 9. Ne5 {[%clk 0:02:59.7]} 9... Nfd7 {[%clk 0:02:40]}
10. Bxe7 {[%clk 0:02:58.3]} 10... Qxe7 {[%clk 0:02:40.9]} 11. f4 {[%clk
0:02:58.3]} 11... Nxe5 {[%clk 0:02:38.8]} 12. fxe5 {[%clk 0:02:58.1]} 12... Qh4+
{[%clk 0:02:38.3]} 13. g3 {[%clk 0:02:54.6]} 13... Qg5 {[%clk 0:02:35.4]} 14.
Qe2 {[%clk 0:02:50]} 14... a5 {[%clk 0:02:32.9]} 15. Bb5+ {[%clk 0:02:39.7]}
15... Bc6 {[%clk 0:02:29.1]} 16. O-O {[%clk 0:02:35.2]} 16... O-O {[%clk
0:02:27.4]} 17. Rf4 {[%clk 0:02:30.5]} 17... c4 {[%clk 0:02:08.4]} 18. Bxc6
{[%clk 0:02:26.6]} 18... Nxc6 {[%clk 0:02:09.3]} 19. Raf1 {[%clk 0:02:24.3]}
19... Ra7 {[%clk 0:02:04.1]} 20. Nf3 {[%clk 0:02:17.1]} 20... Qg6 {[%clk
0:01:56.2]} 21. Nh4 {[%clk 0:02:09.6]} 21... Qd3 {[%clk 0:01:55.7]} 22. Qf2
{[%clk 0:01:52.2]} 22... b5 {[%clk 0:01:44.4]} 23. Rg4 {[%clk 0:01:37]} 23...
Ne7 {[%clk 0:01:28.1]} 24. Qf4 {[%clk 0:01:05.8]} 24... Kh8 {[%clk 0:01:07.9]}
25. Rf3 {[%clk 0:00:52.1]} 25... Qb1+ {[%clk 0:01:00.3]} 26. Kg2 {[%clk
0:00:30.2]} 26... Qxb2+ {[%clk 0:00:48.6]} 27. Kh3 {[%clk 0:00:30.1]} 27... Qc2
{[%clk 0:00:48.8]} 28. Ng2 {[%clk 0:00:18.5]} 28... Qe4 {[%clk 0:00:47.9]} 29.
Rh4 {[%clk 0:00:16.2]} 29... Qxf4 {[%clk 0:00:47.7]} 30. Nxf4 {[%clk 0:00:16.6]}
30... Nf5 {[%clk 0:00:32.4]} 31. Rg4 {[%clk 0:00:09.3]} 31... b4 {[%clk
0:00:30.9]} 32. Ne2 {[%clk 0:00:06.3]} 32... b3 {[%clk 0:00:30.5]} 33. axb3
{[%clk 0:00:06.8]} 33... cxb3 {[%clk 0:00:30.9]} 34. Rf1 {[%clk 0:00:06.9]}
34... a4 {[%clk 0:00:30.8]} 35. e4 {[%clk 0:00:07.2]} 35... Ne3 {[%clk
0:00:30.1]} 36. Rxf7 {[%clk 0:00:05.7]} 36... Rfxf7 {[%clk 0:00:28.9]} 37. Rxg7
{[%clk 0:00:06.6]} 37... Kxg7 {[%clk 0:00:28.4]} 38. Nf4 {[%clk 0:00:07.5]} 0-1

[Event "Early-Titled-Tuesday-Blitz-March-19-2024"]
[Site "Chess.com"]
[Date "2024.03.19"]
[Round "8"]
[White "Flawless_Fighter"]
[Black "mitrabhaa"]
[Result "0-1"]
[WhiteElo "2851"]
[BlackElo "3074"]
[TimeControl "180+1"]
[EndTime "9:28:49 PDT"]
[Termination "mitrabhaa won by checkmate"]

1. e4 {[%clk 0:03:00.9]} 1... c6 {[%clk 0:03:00.3]} 2. d4 {[%clk 0:03:00.7]}
2... d5 {[%clk 0:03:00.9]} 3. e5 {[%clk 0:02:56.2]} 3... Bf5 {[%clk 0:03:00.6]}
4. Nf3 {[%clk 0:02:56.8]} 4... e6 {[%clk 0:03:00.9]} 5. Be2 {[%clk 0:02:57.2]}
5... Ne7 {[%clk 0:03:01.5]} 6. O-O {[%clk 0:02:57.6]} 6... Ng6 {[%clk
0:03:02.2]} 7. Nbd2 {[%clk 0:02:47.9]} 7... Nf4 {[%clk 0:03:02.2]} 8. Nb3 {[%clk
0:02:43.2]} 8... Nxe2+ {[%clk 0:03:02.3]} 9. Qxe2 {[%clk 0:02:44.1]} 9... h6
{[%clk 0:03:03]} 10. h3 {[%clk 0:02:43.8]} 10... Nd7 {[%clk 0:03:02.6]} 11. Be3
{[%clk 0:02:41.6]} 11... Be7 {[%clk 0:03:02.5]} 12. Ne1 {[%clk 0:02:40.3]} 12...
O-O {[%clk 0:03:01.1]} 13. Nd3 {[%clk 0:02:37.3]} 13... b6 {[%clk 0:03:00.9]}
14. c3 {[%clk 0:02:28.1]} 14... Rc8 {[%clk 0:02:58.1]} 15. Nd2 {[%clk
0:02:25.3]} 15... c5 {[%clk 0:02:57.7]} 16. Rac1 {[%clk 0:02:18.9]} 16... Qc7
{[%clk 0:02:56.1]} 17. a3 {[%clk 0:02:16.8]} 17... Qb7 {[%clk 0:02:55]} 18. Nf4
{[%clk 0:02:13.8]} 18... Rc7 {[%clk 0:02:53]} 19. b4 {[%clk 0:02:00.2]} 19...
cxb4 {[%clk 0:02:46.7]} 20. cxb4 {[%clk 0:01:59.2]} 20... Rfc8 {[%clk
0:02:46.6]} 21. Nb3 {[%clk 0:01:48.4]} 21... Rc2 {[%clk 0:02:37.7]} 22. Rxc2
{[%clk 0:01:32.5]} 22... Rxc2 {[%clk 0:02:36.7]} 23. Nd2 {[%clk 0:01:33.2]}
23... Qc8 {[%clk 0:02:32.8]} 24. g4 {[%clk 0:01:31.3]} 24... Bh7 {[%clk
0:02:32.5]} 25. Nh5 {[%clk 0:01:29]} 25... Rc3 {[%clk 0:02:32.2]} 26. Ra1 {[%clk
0:01:23.6]} 26... Nf8 {[%clk 0:02:27.5]} 27. Kh2 {[%clk 0:01:22.3]} 27... Ng6
{[%clk 0:02:26.3]} 28. f4 {[%clk 0:01:08.1]} 28... Nh4 {[%clk 0:02:25.5]} 29.
Rf1 {[%clk 0:00:56.3]} 29... Rxa3 {[%clk 0:02:21.9]} 30. f5 {[%clk 0:00:40.2]}
30... exf5 {[%clk 0:02:08.4]} 31. Nb1 {[%clk 0:00:35.5]} 31... Rb3 {[%clk
0:01:45.5]} 32. Rc1 {[%clk 0:00:31.2]} 32... Qe8 {[%clk 0:01:39.2]} 33. Nd2
{[%clk 0:00:25]} 33... Rb2 {[%clk 0:01:34.7]} 34. Rc7 {[%clk 0:00:23.5]} 34...
Bxb4 {[%clk 0:01:29.9]} 35. Kg3 {[%clk 0:00:16.9]} 35... Bg6 {[%clk 0:01:07.2]}
36. Qa6 {[%clk 0:00:16.4]} 36... Bxd2 {[%clk 0:00:38.9]} 37. Rc8 {[%clk
0:00:11.5]} 37... Be1+ {[%clk 0:00:38.6]} 38. Kf4 {[%clk 0:00:08.4]} 38... Ng2+
{[%clk 0:00:37.9]} 39. Kf3 {[%clk 0:00:08.8]} 39... fxg4+ {[%clk 0:00:38.4]} 40.
hxg4 {[%clk 0:00:08.8]} 40... Be4# {[%clk 0:00:37.9]} 0-1